Cogmind - Beta 16 @@@ ROGUE MODE // 2025.11.17 @ 18:51:01 Player: Mozco Result: Destroyed by X5-3EX(R) with Subdweller Shrapnel Launcher Performance ------------- Evolutions (0) 0 Regions Visited (2) 400 Robots Destroyed (37) 185 Value Destroyed (995) 995 Prototype IDs (14) 280 Alien Tech Used (0) 0 Bonus (0) 0 TOTAL SCORE: 1860 Bonus ------- None Cogmind --------- Core Integrity 0/250 Matter 44/300 Energy 96/100 System Corruption 1% Temperature Cool (2) Movement Walking (190) Ox1 Location -10/Subcaves Parts ------- > --- POWER (1) -------- Subdweller Power Source > --- PROPULSION (2) --- Aluminum Leg Aluminum Leg > --- UTILITY (2) ------ Scrap Shield > --- WEAPON (2) ------- Battle Cannon Slug Cannon > --- INVENTORY (5) ---- Aluminum Leg Cobbler Unit Autobeam Battle Cannon Peak State ------------ > --- POWER ------------ Subdweller Power Source > --- PROPULSION ------- Aluminum Leg Aluminum Leg > --- UTILITY ---------- Scrap Shield > --- WEAPON ----------- Battle Cannon Slug Cannon > --- INVENTORY -------- Aluminum Leg Cobbler Unit Riot Gun Battle Cannon [Rating: 15] Favorites ----------- Power Subdweller Power Source Engine Subdweller Power Source Propulsion Aluminum Leg Leg Aluminum Leg Utility Core Shielding Device Sensor Array Storage Huge Storage Unit Protection Core Shielding Weapon Assault Rifle Energy Gun Riot Gun Energy Cannon Subdweller Beam Cannon Ballistic Gun Assault Rifle Ballistic Cannon Battle Cannon Build | -11 -10 -10 ------- Run | Yrd Mat Sub Slots Evolved . | . . . Power . | . . . Propulsion . | . . . Utility . | . . . Weapon . | . . . Parts Attached 37 | 7 16 14 Power 4 | 2 . 2 Engine 4 | 2 . 2 Core . | . . . Reactor . | . . . Propulsion 15 | 2 12 1 Treads . | . . . Leg 15 | 2 12 1 Wheel . | . . . Hover . | . . . Flight . | . . . Utility 5 | 1 2 2 Device 1 | . . 1 Storage 2 | 1 1 . Processor . | . . . Hackware . | . . . Protection 2 | . 1 1 Artifact . | . . . Weapon 13 | 2 2 9 Energy Gun 4 | 1 . 3 Energy Cannon 1 | . . 1 Ballistic Gun 5 | 1 2 2 Ballistic Cannon 3 | . . 3 Launcher . | . . . Special Weapon . | . . . Impact Weapon . | . . . Slashing Weapon . | . . . Piercing Weapon . | . . . Special Melee Weapon . | . . . Unidentified Prototypes . | . . . Parts Lost 6 | . 1 5 Power 2 | . 1 1 Propulsion 1 | . . 1 Utility . | . . . Weapon 3 | . . 3 Highest Loss Streak 2 | . 1 2 To Critical Strikes . | . . . Average Backups 9 | . 10 9 Power . | . . . Propulsion 3 | . 3 3 Utility 1 | . . 1 Weapon 4 | . 5 4 Tool/Special . | . . . Unused Backups 13 | . 1 12 Power . | . . . Propulsion 2 | . 1 1 Utility 3 | . . 3 Weapon 7 | . . 7 Tool/Special 1 | . . 1 Average Slot Usage (%) 90 | . 99 87 Engine 11 | . 13 10 Leg 27 | . 28 27 Device 1 | . . 1 Storage 8 | . 14 6 Protection 12 | . 13 11 Energy Gun 4 | . 1 5 Ballistic Gun 15 | . 26 12 Ballistic Cannon 7 | . . 9 Peak Build Rating 15 | 6 8 15 Average Rating 10 | 4 7 11 On Entrance 4 | . 6 8 Avg Prop Armor Cover (%) . | . . . Naked Turns . | . . . Heaviest Build 93 | 12 88 93 Greatest Support 20 | 20 20 20 Greatest Overweight (x) 8 | . 4 8 Average Overweight (x) 1 | . 1 1 Largest Inventory Capacity 25 | 8 25 25 Average Capacity 14 | 6 16 13 Most Carried 19 | 2 17 19 Average Carried 10 | . 10 10 Final Capacity 25 | 8 25 5 Final Carried 17 | 2 17 5 Class Distribution -------------------- 64% | Mutant 18% | Scavenger-Mutant 16% | Subdweller-Mutant Dominant Class ---------------- Mutant | -10/Materials Mutant | -10/Subcaves Resources | -11 -10 -10 ----------- Run | Yrd Mat Sub Matter Collected 1461 | 233 546 682 Remotely . | . . . Salvage Created 1298 | . 822 476 Parts 89 | . 53 36 Haulers Intercepted 2 | . 2 . Recyclers Shooed 3 | . 3 . Parts Field Recycled . | . . . Retrieved Matter . | . . . Parts Self-Destructed 16 | . . 16 Prevented . | . . . Parts Restored . | . . . Kills | -11 -10 -10 ------- Run | Yrd Mat Sub Combat Hostiles Destroyed 28 | . 14 14 Guns 24 | . 13 11 Cannons 3 | . . 3 AOE 1 | . 1 . Classes Destroyed 8 | . 5 3 Builder 3 | . 3 . Hauler 2 | . 2 . Recycler 2 | . 2 . Turret 2 | . . 2 Swarmer 7 | . 3 4 Grunt 12 | . 11 1 Cobbler 1 | . . 1 Subdweller 9 | . . 9 Best Kill Streak 8 | . 8 4 Combat Bots Only 6 | . 6 4 Max Kills in Single Turn 2 | . 2 1 Gunslinging . | . . . Exploded 1 | . 1 . Melee . | . . . Uniques/NPCs Destroyed . | . . . Combat | -11 -10 -10 -------- Run | Yrd Mat Sub Hostile Shots Fired 202 | . 70 132 Missed 72 | . 24 48 Hits 130 | . 46 84 Projectile 130 | . 46 84 AOE 1 | . . 1 Critical Strikes 3 | . 1 2 Actively Blocked 1 | . 1 . Damage Taken 1765 | . 544 1221 Core 268 | . 62 206 Absorbed by Shields . | . . . Redirected to Shielding 45 | . 13 32 Core Remaining (%) 100 | 100 . . Volleys Fired 219 | . 75 144 Largest 2 | . 2 2 Hottest 110 | . 60 110 Shots Fired 364 | . 148 216 Gun 267 | . 148 119 Cannon 97 | . . 97 Launcher . | . . . Special . | . . . Kinetic 299 | . 129 170 Thermal 39 | . 19 20 Explosive . | . . . Electromagnetic 26 | . . 26 Robot Hit Streak 19 | . 7 19 Robot Miss Streak 7 | . 4 7 Penetration Max . | . . . Secondary Targets 4 | . 3 1 Max Gunslinging Chain 1 | . 1 1 Shots Hit Robots 171 | . 84 87 Core Hits 67 | . 38 29 Critical Kills . | . . . Critical Parts Destroyed 1 | . 1 . Critical Strikes 3 | . 1 2 Destroy 1 | . 1 . Blast 1 | . . 1 Corrupt 1 | . . 1 Melee Attacks . | . . . Impact . | . . . Slashing . | . . . Piercing . | . . . Sneak Attacks . | . . . Combat Hostiles . | . . . Follow-up Attacks . | . . . Damage Inflicted 2819 | . 1290 1529 Guns 2115 | . 1030 1085 Cannons 372 | . . 372 Explosions 325 | . 253 72 Melee . | . . . Ramming 7 | . 7 . Kinetic 1947 | . 908 1039 Thermal 639 | . 375 264 Explosive . | . . . Electromagnetic 226 | . . 226 Impact . | . . . Slashing . | . . . Piercing . | . . . Highest Corruption 1 | . 1 1 Average Corruption 1 | . 1 1 Corruption Purged . | . . . Corruption Blocked . | . . . Effects 46 | . 6 40 Message Errors 12 | . . 12 Matter Fused 15 | . 2 13 Heat Flow Errors 11 | . 2 9 Energy Discharges 3 | . 1 2 Data Loss (minor) 2 | . 1 1 Data Loss (major) 2 | . . 2 Misfires 1 | . . 1 Overload Shots . | . . . Overflow Damage 53 | . 22 31 Projectiles 9 | . . 9 Explosions 44 | . 22 22 Melee . | . . . Knockbacks 2 | . . 2 Impact . | . . . Kinetic 2 | . . 2 Secondary . | . . . Self-Inflicted Damage 46 | . 46 . Shots 1 | . 1 . Rammed . | . . . Targets Rammed 1 | . 1 . Kicked 1 | . 1 . Crushed . | . . . Highest Temperature 249 | . 242 249 Average Temperature 60 | . 40 103 Received Heat Transfer 459 | . 189 270 Siege Activations . | . . . Martial Activations . | . . . Shielding Activations . | . . . Robots Disrupted . | . . . Combat Hostiles . | . . . Robots Corrupted . | . . . Combat Hostiles . | . . . Parts Fried . | . . . Impact Corruptions . | . . . Robots Melted . | . . . Combat Hostiles . | . . . Parts Melted . | . . . Heat Transferred 747 | . 425 322 Parts Sabotaged . | . . . Parts Stolen . | . . . Parts Stripped . | . . . Power Chain Reactions 1 | . . 1 Alert | -11 -10 -10 ------- Run | Yrd Mat Sub Maximum Alert Level 1 | . 1 . Low Security (%) 85 | 100 85 . Level 1 14 | . 14 . Level 2 . | . . . Level 3 . | . . . Level 4 . | . . . Level 5 . | . . . High Security . | . . . Max Security . | . . . Peak Influence 232 | . 232 . Initial . | . . . Average 88 | . 92 . Influence Increases 755 | . 510 245 Destroy 0b10 Robot/C 420 | . 280 140 Destroy 0b10 Robot/NC 35 | . 35 . Destroy Leader 74 | . 74 . Successful Hack 11 | . 11 . Select Force Hacks 30 | . 30 . Disable Machine 60 | . 60 . Destroy Structure 5 | . 5 . Lose Combat Pursuer 120 | . 15 105 Influence Decreases 655 | . 510 145 Time Decay 625 | . 500 125 Lost Part 30 | . 10 20 Squads Dispatched 4 | . 4 . Investigation 2 | . 2 . Extermination . | . . . Reinforcement 2 | . 2 . Assault . | . . . Garrison . | . . . Intercept . | . . . Searches Triggered . | . . . Construction Impeded . | . . . Haulers Reinforced . | . . . Active Scanning Responses . | . . . Cargo Convoy Interrupts . | . . . Stealth | -11 -10 -10 --------- Run | Yrd Mat Sub Distress Signals 2 | . 2 . Communications Jammed . | . . . Distress Signals . | . . . Times Spotted 53 | . 32 21 Peak Tracking Total 6 | . 4 6 Tactical Retreats 5 | . 1 4 Traps | -11 -10 -10 ------- Run | Yrd Mat Sub Traps Triggered 6 | . 3 3 Indirectly . | . . . Trap Hack Attempts . | . . . Triggered . | . . . Disarmed . | . . . Reprogrammed . | . . . Reused . | . . . Traps Extracted . | . . . Installed . | . . . Triggered . | . . . Machines | -11 -10 -10 ---------- Run | Yrd Mat Sub Machines Disabled 7 | . 4 3 Max in Single Turn 4 | . 4 1 Machines Repaired . | . . . Machines Dismantled . | . . . Machines Sabotaged . | . . . Overloaded Fab Kills . | . . . Hacking | -11 -10 -10 --------- Run | Yrd Mat Sub Machines Accessed 8 | . 6 2 Terminals 5 | . 5 . Fabricators . | . . . Repair Stations . | . . . Recycling Units 1 | . 1 . Scanalyzers . | . . . Garrison Access . | . . . Total Hacks 24 | . 18 6 Successful 14 | . 8 6 Failed 9 | . 9 . Catastrophic . | . . . Database Lockouts 1 | . 1 . Manual 12 | . 12 . Terminals 16 | . 16 . Fabricators . | . . . Repair Stations . | . . . Recycling Units 2 | . 2 . Scanalyzers . | . . . Garrison Access . | . . . Terminal Hacks 11 | . 5 6 Record 6 | . 1 5 Robot Analysis 3 | . 3 . Prototype ID Bank 1 | . 1 . Proto ID Catalog 1 | . . 1 Fabricator Hacks . | . . . Repair Station Hacks . | . . . Recycling Unit Hacks . | . . . Scanalyzer . | . . . Garrison Access Hacks . | . . . Unauthorized Hacks 3 | . 3 . Terminals 2 | . 2 . Botnet 2 | . 2 . Fabricators . | . . . Repair Stations . | . . . Recycling Units 1 | . 1 . Tunnel 1 | . 1 . Scanalyzers . | . . . Garrison Access . | . . . Data Cores Recovered . | . . . Used . | . . . Hacking Detections 4 | . 4 . Full Trace Events 3 | . 3 . Feedback Events . | . . . Feedback Blocked . | . . . Robot Schematics Acquired . | . . . Robots Built . | . . . Authchips . | . . . Time . | . . . Total Robot Build Rating . | . . . Part Schematics Acquired . | . . . Parts Built . | . . . Authchips . | . . . Time . | . . . Total Part Build Rating . | . . . Part Studies Acquired . | . . . Parts Repaired . | . . . Time . | . . . Parts Recycled . | . . . Recycled Matter . | . . . Retrieved Matter . | . . . Retrieved Components . | . . . Parts Scanalyzed . | . . . Part Schematics Acquired . | . . . Parts Damaged . | . . . Bothacking | -11 -10 -10 ------------ Run | Yrd Mat Sub Used RIF Installer . | . . . Robots Hacked . | . . . Non-combat . | . . . Combat . | . . . Robot Hacks Applied . | . . . Relay Couplers Released . | . . . Fabnet Peak Effective % . | . . . Robots Rewired . | . . . Allies Hacked . | . . . Hacks Repelled . | . . . Allies | -11 -10 -10 -------- Run | Yrd Mat Sub Total Allies . | . . . Largest Group . | . . . Highest-Rated Group . | . . . Highest-Rated Ally . | . . . Total Orders . | . . . Ally Attacks . | . . . Total Damage . | . . . Kills . | . . . Allies Corrupted . | . . . Allies Melted . | . . . Intel | -11 -10 -10 ------- Run | Yrd Mat Sub Active Infowar (turns) 754 | . . 754 Sensors 754 | . . 754 Robot Analysis Total 3 | . 3 . Derelict Logs Recovered 2 | . . 2 Drone Launches . | . . . Drone Recoveries . | . . . Exploration | -11 -10 -10 ------------- Run | Yrd Mat Sub Turns Passed 7292 | 76 1738 5478 Spaces Moved 2840 | 56 741 2043 Core 3 | 3 . . Treads . | . . . Legs 2837 | 53 741 2043 Wheels . | . . . Hover . | . . . Flight . | . . . Fastest Speed 50 | 50 120 120 Average Speed 232 | 116 198 247 Slowest Speed 680 | 120 400 680 Overloaded Moves . | . . . Propulsion Burnouts . | . . . Robots Hopped . | . . . Potential Cave-ins 4 | . . 4 Cave-ins Triggered . | . . . Exploration Rate (%) 64 | 5 94 94 Regions Visited 2 Branch Regions 1 Pre-discovered Areas 3 | . 1 2 Known Exits Taken . | . . . Unknown Exits Taken 2 | 1 1 . Scrap Searched 2 | . . 2 Spaces Dug 11 | . . 11 Terrain Destroyed 36 | . 5 31 Melee . | . . . Projectile 26 | . . 26 AOE 10 | . 5 5 Terrain Rammed . | . . . Walls Destroyed . | . . . Machines Disabled . | . . . Actions | -11 -10 -10 --------- Run | Yrd Mat Sub Total 3178 | 63 870 2245 Wait 21 | . 10 11 Move 2838 | 55 740 2043 Hop . | . . . Pick Up 26 | 1 15 10 Fast Attach 11 | 6 1 4 Attach 6 | . 1 5 Detach . | . . . Swap 28 | 1 15 12 Drop 22 | . 12 10 Fire 219 | . 75 144 Melee . | . . . Ram . | . . . Kick 1 | . 1 . Crush . | . . . Escape Stasis . | . . . Rewire . | . . . Trap . | . . . Miscellaneous 6 | . . 6 Route ------- -11/Scrapyard -10/Materials (discovered 5 exits: [*Mat x3] / [*Min] / *Sub) -10/Subcaves (discovered 3 exits: [*Mat x2] / [*Rec]) History --------- Turn | Location | Event 7 | -11/Scrapyard | Discovered new exit (range 16) 77 | -11/Scrapyard | Entered Materials 278 | -10/Materials | Discovered new exit (range 16) 310 | -10/Materials | Build established: Mutant 453 | -10/Materials | Discovered new exit (range 13) 640 | -10/Materials | Discovered new exit (range 16) 701 | -10/Materials | Discovered new exit (range 12) 1237 | -10/Materials | Central database locked down 1365 | -10/Materials | Discovered new exit (range 13) 1815 | -10/Materials | Entered Subcaves 2407 | -10/Subcaves | Core integrity fell below 50% 3209 | -10/Subcaves | Visited 4L-MR0's lab 3234 | -10/Subcaves | Core integrity fell below 20% 3327 | -10/Subcaves | Found Meta Core 3652 | -10/Subcaves | Visited Clippyterm 3664 | -10/Subcaves | Learned Factory garrison access intel 3664 | -10/Subcaves | Learned location of Extension (-5) 3828 | -10/Subcaves | Discovered new exit (range 10) 4761 | -10/Subcaves | Shifting Twisted Machinery released Battle Rifle 4764 | -10/Subcaves | Shifting Twisted Machinery released Humpback 4816 | -10/Subcaves | A swath of the cavern ceiling suddenly collapsed 5022 | -10/Subcaves | Build established: Subdweller-Mutant 5173 | -10/Subcaves | Shifting Twisted Machinery released Battle Cannon 5194 | -10/Subcaves | Shifting Twisted Machinery released Slug Cannon 6058 | -10/Subcaves | Shifting Twisted Machinery released Sub. Optics 6077 | -10/Subcaves | Shifting Twisted Machinery released Sub. Laser 6241 | -10/Subcaves | Build established: Scavenger-Mutant 7120 | -10/Subcaves | Discovered new exit (range 12) 7186 | -10/Subcaves | Learned Materials emergency access door positions 7188 | -10/Subcaves | Discovered new exit (range 14) 7293 | -10/Subcaves | Destroyed by X5-3EX(R) with Subdweller Shrapnel Launcher Last Messages --------------- 07104_ Acquired 30 matter. 07107_ Autobeam Turret Autobeam blasted off. 07120_ Subatomizers dissect the Autobeam. 07120_ EXIT=FOUND 07122_ Machine disabled. 07130_ Subatomizers dissect the Autobeam. 07137_ Autobeam Turret destroyed. 07143_ Subatomizers dissect the Autobeam. 07146_ Destroyed Autobeam. 07146_ Autobeam Turret destroyed. 07162_ Acquired 15 matter. 07164_ Acquired 3 matter. 07166_ Acquired 7 matter. 07169_ Subatomizers dissect the Autobeam. 07170_ Dropped Riot Gun. 07174_ Acquired Autobeam. 07179_ Subatomizers dissect the Riot Gun. 07186_ Acquired derelict log, extracted data. Data stored: Materials emergency access points. 07188_ EXIT=FOUND Map ----- +----------------------------------------------------+ | ?????????????????????????????????????????????????? | | ?????????????????????????????????????????????????? | | ?????????????????????????????????????????????????? | | ?????????????????????????????????????????????????? | | ?????????????????????????????????????????????????? | | ?????????????????????????????????????????????????? | | ?????????????????????????????????????????????????? | | ?????????????????????????????????????????????????? | | ?????????????????????????????????????????????????? | | ?????????????????????????????????????????????????? | | ?????????????????????????????????????????????????? | | ?????????????????????????????????????????????????? | | ?????????????????????????????????????????????????? | | ???????????????????????####??????????????????????? | | ???????????????????#### ##?###?????????????????? | | ??????????????????## ## ##????????????????? | | ??????????????????# ### #????????????????? | | ???????????????????# ### #????????????????? | | ???????????????????# #?# #????????????????? | | ?????????????###??## ### #????????????????? | | ?????????????# #### #????? ????????? | | ?????????????# #???? "????????? | | ?????????????# #???? """???????? | | ?????????????# ##?? ""???????? | | ????????????## ### < #? ?????????? | | ????????????# ##?## @ ##### #???????????? | | ????????????# #?### ## ## #????????????? | | ????????????# #### ##### #?????????????? | | ????????????##### #??# #?????????????? | | ??????????????# ##??# ##?????????????? | | ??????????????# #???# ###??????????????? | | ??????????????## #???# ##??########??????? | | ???????????????## #???# ##??#" """#??????? | | ????????????????# ##??# #??# "##?????? | | ????????????????## #??### R#### [""#?????? | | ?????????????????## #????## ; ##?????? | | ??????????????????########?# <#?????? | | ????????????????????### ### ##?????? | | ????????????????##### ## "" "#??????? | | ?????????????#### % "# "#??????? | | ????????????## ##" """#??????? | | ????????????# ### ## ##########??????? | | ????????????# ### ##### #???????????????? | | ????????????## # ##???## ##???????????????? | | ?????????????## ### #########????????????????? | | ??????????????## ## ## ##?????????????????? | | ??????????????# #### ## #?????????????????? | | ??????????????# ## # #?????????????????? | | ??????????????## #??????????????????? | | ???????????????# ####?????????????????? | +----------------------------------------------------+ Best States ------------- Heat Dissipation 25 Energy Generation 15 Energy Capacity 250 Matter Stores 300 Matter Capacity 300 Sight Range 16 Robot Scan Range 14 Terrain Scan Density 10 Armor Coverage 800 Core Shielding 20 Evasion (%) 55 Item Schematics ----------------- None Robot Schematics ------------------ None Fabricated ------------ Nothing Repaired ---------- Nothing Studied --------- None Alien Tech Used ----------------- None Achievements -------------- None Challenges ------------ None Game ------ Seed RemoteScrapKinecellerator Manual? 0 Play Time 00:23:00 Cumulative 281.8 hours Start 2025.11.17 @ 18:29:11 End 2025.11.17 @ 18:51:01 Sessions 1 Manual Loads 0 Difficulty Rogue Special Mode None Game No. 303 Rogue 299 Adventurer 3 Explorer 1 Win Type - Total 1 Types 1/0/0/0/0/0/0/0/0/0 Lore% 78 Gallery% 76 Achievement% 60 Wizard Run 0 Options --------- Layout 0 ASCII 0 Keyboard 0 Movement Mouse Keybinds 0 Fullscreen 2 Font 18/SmallcapsGlow Map View 76x50 Zoom Use 0% Tactical HUD 1 Map Filters NONE Filters NONE Steam 1 RUN: 4377c223-4a13-4101-a2b3-475869138668